[Event "Croatian-ch Youth U13 2022"]
[Site "Trogir"]
[Date "2022.06.25"]
[Round "6.2"]
[White "Poljan, Max"]
[Black "Sosic, Zvan"]
[Result "1-0"]
[ECO "B90"]
[WhiteElo "1618"]
[BlackElo "1331"]
[Annotator "NA RC"]
[PlyCount "45"]
[EventDate "2022.06.22"]
[EventType "swiss"]
[EventCountry "CRO"]
[SourceTitle "playchess.com"]
[Source "ChessBase"]
[SourceQuality "1"]
[TimeControl "5400+30"]

1. e4 {[%emt 0:00:07]} c5 {[%emt 0:00:09]} 2. Nf3 {[%emt 0:00:04]} d6 {[%emt 0:00:06]} 3. d4 {[%emt 0:00:04]} cxd4 {[%emt 0:00:11]} 4. Nxd4 {[%emt 0:00:04]} Nf6 {[%emt 0:00:08]} 5. Nc3 {[%emt 0:00:03]} a6 {[%emt 0:00:04]} 6. f3 {[%emt 0:00:03]} e5 {[%emt 0:00:06]} 7. Nb3 {[%emt 0:00:03]} Be7 {[%emt 0:00:05]} 8. Be3 {[%emt 0:00:04]} Be6 {[%emt 0:00:26]} 9. Qd2 {[%emt 0:00:05]} Nbd7 {[%emt 0:00:25]} 10. O-O-O {[%emt 0:00:11]} Rc8 {[%emt 0:02:39]} 11. Kb1 {[%emt 0:00:23]} b5 {[%emt 0:02:49]} 12. g4 {[%emt 0:00:58]} b4 {[%emt 0:05:06]} 13. Nd5 {[%emt 0:01:26]} Bxd5 {[%emt 0:01:04]} 14. exd5 {[%emt 0:00:05]} a5 {[%emt 0:00:22]} 15. Bb5 {[%emt 0:00:14]} h6 {[%emt 0:15:16]} 16. h4 {[%emt 0:02:24]} e4 {[%emt 0:04:23]} 17. g5 {[%emt 0:00:38]} hxg5 {[%emt 0:00:53]} 18. hxg5 {[%emt 0:00:19]} Nh5 {[%emt 0:00:30]} 19. fxe4 {[%emt 0:01:30]} g6 {[%emt 0:01:36]} 20. Nd4 {[%emt 0:01:40]} Qc7 {[%emt 0:03:03]} 21. Rdf1 {[%emt 0:07:15]} Rg8 {[%emt 0:02:09]} 22. Rf3 {[%emt 0:01:22]} Rg7 {[%emt 0:17:19]} 23. Rhf1 {[%emt 0:01:06]} 1-0

[Event "Croatian-ch Youth U13 2022"]
[Site "Trogir"]
[Date "2022.06.25"]
[Round "6.3"]
[White "Kucelj, Kevin"]
[Black "Tadic, Jure"]
[Result "0-1"]
[ECO "C49"]
[WhiteElo "1398"]
[BlackElo "1565"]
[Annotator "NA RC"]
[PlyCount "105"]
[EventDate "2022.06.22"]
[EventType "swiss"]
[EventCountry "CRO"]
[SourceTitle "playchess.com"]
[Source "ChessBase"]
[SourceQuality "1"]
[TimeControl "5400+30"]

1. e4 {[%emt 0:00:01]} e5 {[%emt 0:00:07]} 2. Nf3 {[%emt 0:00:02]} Nc6 {[%emt 0:00:15]} 3. Nc3 {[%emt 0:00:04]} Nf6 {[%emt 0:00:20]} 4. Bb5 {[%emt 0:00:05]} Bb4 {[%emt 0:00:57]} 5. O-O {[%emt 0:00:07]} d6 {[%emt 0:08:44]} 6. Nd5 {[%emt 0:00:12]} Ba5 {[%emt 0:01:45]} 7. d3 {[%emt 0:07:26]} h6 {[%emt 0:01:56]} 8. b4 {[%emt 0:01:43]} Bb6 {[%emt 0:00:56]} 9. Nxb6 {[%emt 0:00:27]} axb6 {[%emt 0:00:11]} 10. h3 {[%emt 0:04:41]} O-O {[%emt 0:00:31]} 11. a3 {[%emt 0:02:43]} Nxb4 {[%emt 0:02:29]} 12. Bxh6 {[%emt 0:02:42]} Nxc2 {[%emt 0:00:23]} 13. Bxg7 {[%emt 0:01:50]} Nxa1 {[%emt 0:01:43]} 14. Bxf8 {[%emt 0:00:26]} Qxf8 {[%emt 0:00:14]} 15. Qxa1 {[%emt 0:00:12]} Qg7 {[%emt 0:00:38]} 16. Kh2 {[%emt 0:01:30]} Nh5 {[%emt 0:05:16]} 17. g3 {[%emt 0:13:11]} Qh6 {[%emt 0:11:43]} 18. Ng1 {[%emt 0:05:34]} Qd2 {[%emt 0:05:05]} 19. Qc1 {[%emt 0:02:07]} Qxc1 {[%emt 0:01:48]} 20. Rxc1 {[%emt 0:00:04]} c6 {[%emt 0:00:28]} 21. Bxc6 {[%emt 0:00:13]} bxc6 {[%emt 0:02:03]} 22. Rxc6 {[%emt 0:00:06]} b5 {[%emt 0:09:39]} 23. Rxd6 {[%emt 0:00:58]} Be6 {[%emt 0:00:24]} 24. Rb6 {[%emt 0:01:25]} Bd7 {[%emt 0:02:38]} 25. Rb7 {[%emt 0:06:55]} Be8 {[%emt 0:00:50]} 26. Re7 {[%emt 0:02:33]} f6 {[%emt 0:01:25]} 27. g4 {[%emt 0:08:49]} Kf8 {[%emt 0:03:55]} 28. Rc7 {[%emt 0:04:05]} Nf4 {[%emt 0:02:56]} 29. Rc3 {[%emt 0:00:17]} Rd8 {[%emt 0:03:03]} 30. h4 {[%emt 0:01:59]} Rxd3 {[%emt 0:00:35]} 31. Rxd3 {[%emt 0:00:09]} Nxd3 {[%emt 0:00:02]} 32. Kg3 {[%emt 0:05:27]} Ne1 {[%emt 0:01:19]} 33. Nf3 {[%emt 0:02:14]} Nc2 {[%emt 0:00:26]} 34. Nd2 {[%emt 0:00:10]} Nxa3 {[%emt 0:00:18]} 35. f4 {[%emt 0:00:44]} b4 {[%emt 0:10:43]} 36. fxe5 {[%emt 0:00:02]} fxe5 {[%emt 0:00:00]} 37. g5 {[%emt 0:03:59]} Bf7 {[%emt 0:00:00]} 38. Kg4 {[%emt 0:01:49]} Be6+ {[%emt 0:01:00]} 39. Kh5 {[%emt 0:00:17]} Nc4 {[%emt 0:09:03]} 40. Nb1 {[%emt 0:01:26]} Nd6 {[%emt 0:00:36]} 41. Nd2 {[%emt 0:00:47]} Kg7 {[%emt 0:01:19]} 42. g6 {[%emt 0:00:43]} b3 {[%emt 0:00:12]} 43. Nxb3 {[%emt 0:00:43]} Bxb3 {[%emt 0:00:13]} 44. Kg5 {[%emt 0:00:11]} Be6 {[%emt 0:00:09]} 45. h5 {[%emt 0:00:22]} Nxe4+ {[%emt 0:00:09]} 46. Kh4 {[%emt 0:00:07]} Kf6 {[%emt 0:00:42]} 47. g7 {[%emt 0:00:21]} Kxg7 {[%emt 0:00:09]} 48. h6+ {[%emt 0:00:07]} Kh7 {[%emt 0:00:44]} 49. Kh5 {[%emt 0:00:14]} Bf7+ {[%emt 0:00:27]} 50. Kh4 {[%emt 0:00:11]} Kxh6 {[%emt 0:00:37]} 51. Kg4 {[%emt 0:00:04]} Nf6+ {[%emt 0:00:13]} 52. Kf5 {[%emt 0:00:09]} e4 {[%emt 0:00:06]} 53. Ke5 {[%emt 0:00:28]} 0-1

[Event "Croatian-ch Youth U13 2022"]
[Site "Trogir"]
[Date "2022.06.25"]
[Round "6.5"]
[White "Kresic, Vid"]
[Black "Solin, Borna"]
[Result "1/2-1/2"]
[ECO "C70"]
[WhiteElo "1459"]
[BlackElo "1324"]
[Annotator "NA RC"]
[PlyCount "66"]
[EventDate "2022.06.22"]
[EventType "swiss"]
[EventCountry "CRO"]
[SourceTitle "playchess.com"]
[Source "ChessBase"]
[SourceQuality "1"]
[TimeControl "5400+30"]

1. e4 {[%emt 0:00:15]} e5 {[%emt 0:00:11]} 2. Nf3 {[%emt 0:00:33]} Nc6 {[%emt 0:00:09]} 3. Bb5 {[%emt 0:01:04]} a6 {[%emt 0:00:36]} 4. Ba4 {[%emt 0:00:05]} b5 {[%emt 0:01:29]} 5. Bb3 {[%emt 0:00:09]} Bb7 {[%emt 0:01:03]} 6. d3 {[%emt 0:00:46]} h6 {[%emt 0:00:18]} 7. Be3 {[%emt 0:01:15]} d6 {[%emt 0:01:43]} 8. c3 {[%emt 0:01:37]} Nf6 {[%emt 0:02:47]} 9. O-O {[%emt 0:00:27]} Ne7 {[%emt 0:02:43]} 10. Nbd2 {[%emt 0:01:36]} Ng6 {[%emt 0:01:13]} 11. a4 {[%emt 0:01:36]} Be7 {[%emt 0:02:00]} 12. axb5 {[%emt 0:01:44]} axb5 {[%emt 0:00:23]} 13. Rxa8 {[%emt 0:01:37]} Qxa8 {[%emt 0:00:14]} 14. Qc2 {[%emt 0:02:40]} O-O {[%emt 0:05:36]} 15. c4 {[%emt 0:04:42]} bxc4 {[%emt 0:12:39]} 16. Bxc4 {[%emt 0:00:30]} Ng4 {[%emt 0:03:18]} 17. h3 {[%emt 0:00:50]} Nxe3 {[%emt 0:01:40]} 18. fxe3 {[%emt 0:00:13]} c5 {[%emt 0:03:26]} 19. Nb3 {[%emt 0:03:45]} Bc6 {[%emt 0:07:20]} 20. Ra1 {[%emt 0:03:37]} Qb7 {[%emt 0:05:13]} 21. Na5 {[%emt 0:00:27]} Qc7 {[%emt 0:01:30]} 22. Nxc6 {[%emt 0:00:11]} Qxc6 {[%emt 0:00:08]} 23. Ra6 {[%emt 0:00:15]} Qb7 {[%emt 0:01:14]} 24. Nd2 {[%emt 0:02:13]} Kh7 {[%emt 0:04:08]} 25. Nb3 {[%emt 0:01:27]} Qb4 {[%emt 0:03:40]} 26. Qd2 {[%emt 0:01:00]} Qxd2 {[%emt 0:01:22]} 27. Nxd2 {[%emt 0:00:05]} f5 {[%emt 0:00:35]} 28. exf5 {[%emt 0:00:18]} Rxf5 {[%emt 0:00:14]} 29. Ne4 {[%emt 0:00:52]} Rf8 {[%emt 0:03:54]} 30. Nxd6 {[%emt 0:00:53]} Bg5 {[%emt 0:01:45]} 31. e4 {[%emt 0:01:26]} Be3+ {[%emt 0:00:19]} 32. Kh2 {[%emt 0:00:10]} Rf1 {[%emt 0:03:20]} 33. Nf5 {[%emt 0:01:27]} Bg1+ {[%emt 0:03:44]} 1/2-1/2

[Event "Croatian-ch Youth U13 2022"]
[Site "Trogir"]
[Date "2022.06.25"]
[Round "6.6"]
[White "Horvat, Ivan"]
[Black "Matkovic, Mihael"]
[Result "1-0"]
[ECO "C78"]
[WhiteElo "1290"]
[BlackElo "1215"]
[Annotator "NA RC"]
[PlyCount "69"]
[EventDate "2022.06.22"]
[EventType "swiss"]
[EventCountry "CRO"]
[SourceTitle "playchess.com"]
[Source "ChessBase"]
[SourceQuality "1"]
[TimeControl "5400+30"]

1. e4 {[%emt 0:00:04]} e5 {[%emt 0:00:04]} 2. Nf3 {[%emt 0:00:15]} Nc6 {[%emt 0:00:16]} 3. Bb5 {[%emt 0:00:11]} a6 {[%emt 0:00:27]} 4. Ba4 {[%emt 0:00:10]} Nf6 {[%emt 0:00:34]} 5. O-O {[%emt 0:00:17]} Bb4 {[%emt 0:01:02]} 6. c3 {[%emt 0:00:25]} Ba5 {[%emt 0:01:09]} 7. h3 {[%emt 0:01:18]} O-O {[%emt 0:02:59]} 8. d3 {[%emt 0:00:31]} h6 {[%emt 0:00:10]} 9. Nbd2 {[%emt 0:01:59]} d6 {[%emt 0:02:15]} 10. Nc4 {[%emt 0:01:14]} b5 {[%emt 0:11:12]} 11. Nxa5 {[%emt 0:00:19]} Nxa5 {[%emt 0:00:11]} 12. Bc2 {[%emt 0:00:07]} Bb7 {[%emt 0:08:55]} 13. Re1 {[%emt 0:02:47]} Re8 {[%emt 0:03:50]} 14. b4 {[%emt 0:06:01]} Nc6 {[%emt 0:02:04]} 15. a4 {[%emt 0:05:19]} d5 {[%emt 0:19:52]} 16. exd5 {[%emt 0:06:17]} Nxd5 {[%emt 0:00:47]} 17. Bd2 {[%emt 0:05:33]} Qd6 {[%emt 0:16:07]} 18. axb5 {[%emt 0:02:08]} axb5 {[%emt 0:00:19]} 19. Rxa8 {[%emt 0:00:12]} Rxa8 {[%emt 0:00:40]} 20. Re2 {[%emt 0:06:40]} Nf6 {[%emt 0:05:47]} 21. Qe1 {[%emt 0:02:20]} Ra2 {[%emt 0:01:17]} 22. Qb1 {[%emt 0:03:30]} Ra8 {[%emt 0:20:30]} 23. Qe1 {[%emt 0:20:53]} Ra2 {[%emt 0:00:00]} 24. Bb1 {[%emt 0:00:04]} Ra1 {[%emt 0:00:00]} 25. Be3 {[%emt 0:12:20]} Ne7 {[%emt 0:00:00]} 26. Bc5 {[%emt 0:00:54]} Qd7 {[%emt 0:00:00]} 27. Nxe5 {[%emt 0:01:32]} Qd8 {[%emt 0:00:00]} 28. Bxe7 {[%emt 0:01:15]} Qxe7 {[%emt 0:00:00]} 29. d4 {[%emt 0:00:40]} Be4 {[%emt 0:00:00]} 30. Nf3 {[%emt 0:05:44]} Qe8 {[%emt 0:01:11]} 31. Nd2 {[%emt 0:00:57]} c6 {[%emt 0:02:45]} 32. Nxe4 {[%emt 0:00:34]} Nxe4 {[%emt 0:00:13]} 33. Rxe4 {[%emt 0:00:14]} Qd7 {[%emt 0:01:36]} 34. Re8+ {[%emt 0:00:08]} Qxe8 {[%emt 0:00:19]} 35. Qxe8# {[%emt 0:00:02]} 1-0

[Event "Croatian-ch Youth U13 2022"]
[Site "Trogir"]
[Date "2022.06.25"]
[Round "6.7"]
[White "Delibasic, Dominik"]
[Black "Perdic, Arijan"]
[Result "0-1"]
[ECO "B13"]
[WhiteElo "1523"]
[BlackElo "1149"]
[Annotator "NA RC"]
[PlyCount "48"]
[EventDate "2022.06.22"]
[EventType "swiss"]
[EventCountry "CRO"]
[SourceTitle "playchess.com"]
[Source "ChessBase"]
[SourceQuality "1"]
[TimeControl "5400+30"]

1. e4 {[%emt 0:00:10]} c6 {[%emt 0:00:06]} 2. d4 {[%emt 0:00:05]} d5 {[%emt 0:00:08]} 3. exd5 {[%emt 0:00:05]} cxd5 {[%emt 0:00:06]} 4. Bd3 {[%emt 0:00:06]} Nc6 {[%emt 0:00:57]} 5. c3 {[%emt 0:00:25]} h6 {[%emt 0:01:19]} 6. h3 {[%emt 0:01:53]} Nf6 {[%emt 0:00:38]} 7. Bf4 {[%emt 0:03:28]} Qb6 {[%emt 0:00:59]} 8. Qc2 {[%emt 0:02:28]} Bd7 {[%emt 0:01:39]} 9. Nf3 {[%emt 0:00:45]} Rc8 {[%emt 0:00:29]} 10. Qe2 {[%emt 0:04:53]} e6 {[%emt 0:03:00]} 11. O-O {[%emt 0:00:32]} Be7 {[%emt 0:00:48]} 12. b3 {[%emt 0:06:14]} O-O {[%emt 0:01:46]} 13. Ne5 {[%emt 0:27:33]} Nxd4 {[%emt 0:08:33]} 14. Qd2 {[%emt 0:16:14]} Nc6 {[%emt 0:15:13]} 15. g4 {[%emt 0:10:50]} Nxe5 {[%emt 0:02:22]} 16. Bxe5 {[%emt 0:00:28]} Bb5 {[%emt 0:00:26]} 17. Bd4 {[%emt 0:06:02]} Qc6 {[%emt 0:02:35]} 18. f4 {[%emt 0:06:05]} Bxd3 {[%emt 0:01:26]} 19. Qxd3 {[%emt 0:00:09]} Bc5 {[%emt 0:00:35]} 20. g5 {[%emt 0:00:41]} hxg5 {[%emt 0:01:04]} 21. fxg5 {[%emt 0:00:10]} Bxd4+ {[%emt 0:00:12]} 22. cxd4 {[%emt 0:00:22]} Ne4 {[%emt 0:00:32]} 23. Qe3 {[%emt 0:01:37]} Qd6 {[%emt 0:00:36]} 24. Rf3 {[%emt 0:00:46]} Rc2 {[%emt 0:00:31]} 0-1

[Event "Croatian-ch Youth U13 2022"]
[Site "Trogir"]
[Date "2022.06.25"]
[Round "6.8"]
[White "Mimica, Matija"]
[Black "Rehak, Bozidar"]
[Result "1-0"]
[ECO "D07"]
[WhiteElo "1421"]
[BlackElo "1186"]
[Annotator "NA RC"]
[PlyCount "89"]
[EventDate "2022.06.22"]
[EventType "swiss"]
[EventCountry "CRO"]
[SourceTitle "playchess.com"]
[Source "ChessBase"]
[SourceQuality "1"]
[TimeControl "5400+30"]

1. d4 {[%emt 0:00:02]} d5 {[%emt 0:00:16]} 2. c4 {[%emt 0:00:36]} e6 {[%emt 0:00:24]} 3. Nc3 {[%emt 0:00:56]} Nf6 {[%emt 0:00:20]} 4. Nf3 {[%emt 0:00:44]} Nc6 {[%emt 0:00:46]} 5. e3 {[%emt 0:01:30]} Bd7 {[%emt 0:01:09]} 6. Bd3 {[%emt 0:01:50]} dxc4 {[%emt 0:01:48]} 7. Bxc4 {[%emt 0:00:16]} Bd6 {[%emt 0:00:09]} 8. O-O {[%emt 0:00:34]} O-O {[%emt 0:00:09]} 9. e4 {[%emt 0:00:12]} e5 {[%emt 0:01:11]} 10. d5 {[%emt 0:08:46]} Ne7 {[%emt 0:00:11]} 11. Bg5 {[%emt 0:00:19]} Ng6 {[%emt 0:00:13]} 12. Nb5 {[%emt 0:04:13]} a6 {[%emt 0:00:46]} 13. Nxd6 {[%emt 0:00:41]} cxd6 {[%emt 0:00:12]} 14. Re1 {[%emt 0:01:07]} h6 {[%emt 0:00:46]} 15. Bd2 {[%emt 0:00:24]} Rc8 {[%emt 0:01:05]} 16. Qb3 {[%emt 0:09:48]} b5 {[%emt 0:01:07]} 17. Bf1 {[%emt 0:00:36]} Qb6 {[%emt 0:01:51]} 18. a4 {[%emt 0:02:56]} Ra8 {[%emt 0:02:18]} 19. a5 {[%emt 0:00:25]} Qb7 {[%emt 0:01:26]} 20. Bb4 {[%emt 0:00:26]} Ne8 {[%emt 0:01:35]} 21. Rac1 {[%emt 0:00:26]} f5 {[%emt 0:01:15]} 22. exf5 {[%emt 0:01:33]} Ne7 {[%emt 0:03:56]} 23. Nxe5 {[%emt 0:05:00]} Rxf5 {[%emt 0:01:40]} 24. Nc6 {[%emt 0:00:46]} Nxd5 {[%emt 0:09:25]} 25. Ne7+ {[%emt 0:00:18]} Kf8 {[%emt 0:00:12]} 26. Nxf5 {[%emt 0:00:36]} Bxf5 {[%emt 0:00:10]} 27. Qf3 {[%emt 0:02:23]} Qf7 {[%emt 0:01:05]} 28. Re5 {[%emt 0:01:49]} Be6 {[%emt 0:03:06]} 29. Qxf7+ {[%emt 0:01:53]} Bxf7 {[%emt 0:00:11]} 30. Re4 {[%emt 0:06:12]} Nxb4 {[%emt 0:01:13]} 31. Rxb4 {[%emt 0:00:34]} Nf6 {[%emt 0:01:28]} 32. Rd4 {[%emt 0:01:43]} Rd8 {[%emt 0:01:08]} 33. Rc6 {[%emt 0:00:24]} d5 {[%emt 0:04:13]} 34. Rxa6 {[%emt 0:01:14]} b4 {[%emt 0:01:06]} 35. Rb6 {[%emt 0:01:02]} Ra8 {[%emt 0:01:04]} 36. a6 {[%emt 0:00:22]} Nd7 {[%emt 0:01:31]} 37. Rbxb4 {[%emt 0:01:08]} Nc5 {[%emt 0:00:30]} 38. Rb5 {[%emt 0:00:42]} Ne6 {[%emt 0:01:08]} 39. Rdb4 {[%emt 0:00:37]} Re8 {[%emt 0:03:22]} 40. Rb8 {[%emt 0:00:15]} Nd8 {[%emt 0:00:43]} 41. a7 {[%emt 0:01:14]} Nc6 {[%emt 0:00:09]} 42. Rxe8+ {[%emt 0:00:08]} Bxe8 {[%emt 0:00:06]} 43. Rf4+ {[%emt 0:00:11]} Kg8 {[%emt 0:01:17]} 44. a8=Q {[%emt 0:00:16]} Kh7 {[%emt 0:01:24]} 45. Bd3+ {[%emt 0:00:22]} 1-0

[Event "Croatian-ch Youth U13 2022"]
[Site "Trogir"]
[Date "2022.06.25"]
[Round "6.9"]
[White "Vucenovic, Diara"]
[Black "Hajdinic, Ema"]
[Result "0-1"]
[ECO "B22"]
[WhiteElo "1352"]
[BlackElo "1535"]
[Annotator "NA RC"]
[PlyCount "64"]
[EventDate "2022.06.22"]
[EventType "swiss"]
[EventCountry "CRO"]
[SourceTitle "playchess.com"]
[Source "ChessBase"]
[SourceQuality "1"]
[TimeControl "5400+30"]

1. e4 {[%emt 0:00:02]} c5 {[%emt 0:00:03]} 2. Nf3 {[%emt 0:00:05]} e6 {[%emt 0:00:04]} 3. c3 {[%emt 0:00:04]} Nc6 {[%emt 0:00:24]} 4. d4 {[%emt 0:01:37]} d5 {[%emt 0:00:07]} 5. exd5 {[%emt 0:01:43]} exd5 {[%emt 0:00:06]} 6. Bd3 {[%emt 0:05:48]} Bg4 {[%emt 0:01:17]} 7. Be3 {[%emt 0:03:53]} Qb6 {[%emt 0:01:28]} 8. Qd2 {[%emt 0:13:47]} Bxf3 {[%emt 0:02:24]} 9. gxf3 {[%emt 0:01:54]} c4 {[%emt 0:02:38]} 10. Bf5 {[%emt 0:14:21]} Nge7 {[%emt 0:02:10]} 11. Bh3 {[%emt 0:01:32]} h6 {[%emt 0:01:37]} 12. Qe2 {[%emt 0:02:28]} f5 {[%emt 0:03:29]} 13. Bc1 {[%emt 0:09:14]} Kf7 {[%emt 0:02:40]} 14. O-O {[%emt 0:05:20]} Nd8 {[%emt 0:02:26]} 15. Kh1 {[%emt 0:03:01]} Qe6 {[%emt 0:01:24]} 16. Qc2 {[%emt 0:06:47]} Qg6 {[%emt 0:02:08]} 17. Rg1 {[%emt 0:00:29]} Qh5 {[%emt 0:00:12]} 18. Bg2 {[%emt 0:00:32]} Ng6 {[%emt 0:00:47]} 19. Qe2 {[%emt 0:01:31]} Bd6 {[%emt 0:00:25]} 20. h3 {[%emt 0:00:58]} Re8 {[%emt 0:00:15]} 21. Qf1 {[%emt 0:00:33]} Nh4 {[%emt 0:01:10]} 22. Nd2 {[%emt 0:00:51]} Ne6 {[%emt 0:00:13]} 23. b3 {[%emt 0:02:41]} Nf4 {[%emt 0:00:29]} 24. bxc4 {[%emt 0:01:00]} Nhxg2 {[%emt 0:00:12]} 25. Rxg2 {[%emt 0:01:07]} Nxg2 {[%emt 0:00:16]} 26. Qxg2 {[%emt 0:01:41]} Re1+ {[%emt 0:00:09]} 27. Nf1 {[%emt 0:00:16]} Rae8 {[%emt 0:00:46]} 28. Bb2 {[%emt 0:01:56]} Rxa1 {[%emt 0:00:34]} 29. Bxa1 {[%emt 0:00:10]} Re1 {[%emt 0:00:25]} 30. Bb2 {[%emt 0:00:17]} dxc4 {[%emt 0:00:14]} 31. d5 {[%emt 0:01:53]} Rb1 {[%emt 0:00:08]} 32. Ba3 {[%emt 0:00:04]} Bxa3 {[%emt 0:00:07]} 0-1

[Event "Croatian-ch Youth U13 2022"]
[Site "Trogir"]
[Date "2022.06.25"]
[Round "6.11"]
[White "Car, Lana"]
[Black "Zagar, Lara Marija"]
[Result "1/2-1/2"]
[ECO "B07"]
[WhiteElo "1189"]
[BlackElo "1272"]
[Annotator "NA RC"]
[PlyCount "83"]
[EventDate "2022.06.22"]
[EventType "swiss"]
[EventCountry "CRO"]
[SourceTitle "playchess.com"]
[Source "ChessBase"]
[SourceQuality "1"]
[TimeControl "5400+30"]

1. e4 {[%emt 0:00:05]} g6 {[%emt 0:00:06]} 2. g3 {[%emt 0:00:26]} Bg7 {[%emt 0:00:09]} 3. Bg2 {[%emt 0:00:13]} d6 {[%emt 0:00:14]} 4. Nf3 {[%emt 0:00:32]} Nd7 {[%emt 0:00:37]} 5. O-O {[%emt 0:00:40]} c5 {[%emt 0:00:37]} 6. d3 {[%emt 0:00:29]} Ngf6 {[%emt 0:00:34]} 7. Nbd2 {[%emt 0:01:17]} O-O {[%emt 0:03:15]} 8. Re1 {[%emt 0:01:58]} Rb8 {[%emt 0:01:32]} 9. c3 {[%emt 0:02:34]} b6 {[%emt 0:05:12]} 10. a4 {[%emt 0:01:34]} Kh8 {[%emt 0:04:09]} 11. Nb3 {[%emt 0:02:22]} Bb7 {[%emt 0:02:13]} 12. a5 {[%emt 0:02:00]} Ra8 {[%emt 0:01:33]} 13. a6 {[%emt 0:00:55]} Bc8 {[%emt 0:02:33]} 14. Nfd2 {[%emt 0:04:36]} Rb8 {[%emt 0:01:34]} 15. d4 {[%emt 0:01:17]} Qc7 {[%emt 0:03:28]} 16. Nf1 {[%emt 0:04:17]} e5 {[%emt 0:03:46]} 17. d5 {[%emt 0:01:41]} c4 {[%emt 0:03:24]} 18. Nbd2 {[%emt 0:00:19]} Ng8 {[%emt 0:00:21]} 19. Ne3 {[%emt 0:02:25]} b5 {[%emt 0:01:21]} 20. b4 {[%emt 0:02:04]} Nb6 {[%emt 0:04:44]} 21. Qc2 {[%emt 0:04:23]} f6 {[%emt 0:05:20]} 22. Nd1 {[%emt 0:07:12]} Nd7 {[%emt 0:02:46]} 23. Ra5 {[%emt 0:03:26]} Rb6 {[%emt 0:01:36]} 24. Qa2 {[%emt 0:00:43]} Nb8 {[%emt 0:00:57]} 25. Nb1 {[%emt 0:03:57]} Rxa6 {[%emt 0:15:50]} 26. Be3 {[%emt 0:03:07]} Qb7 {[%emt 0:11:41]} 27. Re2 {[%emt 0:01:01]} Bh6 {[%emt 0:01:26]} 28. Qa1 {[%emt 0:04:16]} Bxe3 {[%emt 0:00:33]} 29. Nxe3 {[%emt 0:00:14]} Rxa5 {[%emt 0:00:21]} 30. bxa5 {[%emt 0:00:44]} a6 {[%emt 0:00:17]} 31. Rb2 {[%emt 0:00:30]} Nd7 {[%emt 0:00:35]} 32. Nxc4 {[%emt 0:00:36]} Qc7 {[%emt 0:00:58]} 33. Ne3 {[%emt 0:02:56]} Nc5 {[%emt 0:00:49]} 34. Rc2 {[%emt 0:01:26]} Bd7 {[%emt 0:00:33]} 35. Qa2 {[%emt 0:01:58]} Rb8 {[%emt 0:01:11]} 36. f3 {[%emt 0:01:47]} Kg7 {[%emt 0:01:21]} 37. Bf1 {[%emt 0:01:26]} Rb7 {[%emt 0:00:45]} 38. Nd2 {[%emt 0:02:21]} Ne7 {[%emt 0:00:59]} 39. Nb3 {[%emt 0:01:56]} Nxb3 {[%emt 0:00:29]} 40. Qxb3 {[%emt 0:00:11]} Qxa5 {[%emt 0:00:30]} 41. Nc4 {[%emt 0:01:29]} Qc7 {[%emt 0:00:24]} 42. Ne3 {[%emt 0:10:35]} 1/2-1/2

[Event "Croatian-ch Youth U13 2022"]
[Site "Trogir"]
[Date "2022.06.26"]
[Round "7.1"]
[White "Tadic, Jure"]
[Black "Petrus, Adrian"]
[Result "1-0"]
[ECO "B90"]
[WhiteElo "1565"]
[BlackElo "1526"]
[Annotator "NA RC"]
[PlyCount "79"]
[EventDate "2022.06.22"]
[EventType "swiss"]
[EventCountry "CRO"]
[SourceTitle "playchess.com"]
[Source "ChessBase"]
[SourceQuality "1"]
[TimeControl "5400+30"]

1. e4 {[%emt 0:00:04]} c5 {[%emt 0:00:02]} 2. Nf3 {[%emt 0:00:13]} d6 {[%emt 0:00:13]} 3. d4 {[%emt 0:00:14]} cxd4 {[%emt 0:00:11]} 4. Nxd4 {[%emt 0:00:05]} Nf6 {[%emt 0:00:05]} 5. Nc3 {[%emt 0:00:20]} a6 {[%emt 0:00:08]} 6. f3 {[%emt 0:00:17]} e5 {[%emt 0:01:05]} 7. Nb3 {[%emt 0:00:16]} h5 {[%emt 0:01:03]} 8. Be3 {[%emt 0:01:06]} Be6 {[%emt 0:00:30]} 9. Nd5 {[%emt 0:00:48]} Bxd5 {[%emt 0:00:40]} 10. exd5 {[%emt 0:00:09]} Nbd7 {[%emt 0:01:09]} 11. Qd2 {[%emt 0:00:57]} g6 {[%emt 0:03:11]} 12. Be2 {[%emt 0:00:33]} Bg7 {[%emt 0:00:49]} 13. O-O {[%emt 0:00:32]} b6 {[%emt 0:00:14]} 14. c4 {[%emt 0:00:49]} O-O {[%emt 0:01:04]} 15. Rae1 {[%emt 0:01:49]} a5 {[%emt 0:06:44]} 16. Qd1 {[%emt 0:10:36]} Qc7 {[%emt 0:05:42]} 17. Kh1 {[%emt 0:02:40]} a4 {[%emt 0:05:27]} 18. Nd2 {[%emt 0:00:35]} Nc5 {[%emt 0:00:19]} 19. Qb1 {[%emt 0:08:50]} b5 {[%emt 0:13:21]} 20. Ne4 {[%emt 0:19:42]} Ncxe4 {[%emt 0:01:23]} 21. fxe4 {[%emt 0:00:12]} bxc4 {[%emt 0:00:37]} 22. Rc1 {[%emt 0:00:17]} Qb7 {[%emt 0:02:27]} 23. Bxc4 {[%emt 0:05:29]} Rfb8 {[%emt 0:01:57]} 24. b3 {[%emt 0:00:41]} Ng4 {[%emt 0:00:32]} 25. Bg1 {[%emt 0:06:33]} axb3 {[%emt 0:03:45]} 26. Bxb3 {[%emt 0:00:34]} Qe7 {[%emt 0:01:11]} 27. h3 {[%emt 0:04:56]} Nf6 {[%emt 0:03:51]} 28. Be3 {[%emt 0:02:10]} Rb4 {[%emt 0:08:08]} 29. Bg5 {[%emt 0:02:29]} Raa4 {[%emt 0:12:04]} 30. Qd3 {[%emt 0:06:37]} Rxe4 {[%emt 0:01:21]} 31. Bxa4 {[%emt 0:01:11]} Rxa4 {[%emt 0:00:11]} 32. Qf3 {[%emt 0:00:34]} e4 {[%emt 0:01:21]} 33. Bxf6 {[%emt 0:01:01]} exf3 {[%emt 0:00:12]} 34. Bxe7 {[%emt 0:00:09]} fxg2+ {[%emt 0:00:04]} 35. Kxg2 {[%emt 0:00:09]} Rxa2+ {[%emt 0:00:08]} 36. Rf2 {[%emt 0:00:16]} Ra5 {[%emt 0:00:12]} 37. Rd2 {[%emt 0:02:19]} Be5 {[%emt 0:00:40]} 38. Rc6 {[%emt 0:01:00]} Bf4 {[%emt 0:00:49]} 39. Bf6 {[%emt 0:01:58]} g5 {[%emt 0:00:23]} 40. Rd4 {[%emt 0:04:17]} 1-0